fUSD/lending_fUSD_20241222
["ID","MTS","AMOUNT","RATE_DAILY","PERIOD"]
[346259294,1734844247037,-1284.0,0.00019273,2]
[346259295,1734844247046,-755.0,0.00019273,2]
[346259296,1734844247056,-150.0,0.00019277,2]
[346259297,1734844247065,-150.0,0.00019285,2]
[346259298,1734844247075,-1101.80489096,0.00019285,2]
[346259299,1734844247084,-270.4974656,0.00019285,2]
[346259300,1734844247094,-151.00631116,0.00019288,2]
[346259301,1734844247104,-150.0,0.00019292,2]
[346259302,1734844247113,-21861.3051498,0.00019346,2]
[346259303,1734844247123,-500.0,0.00019352,2]
[346259304,1734844247132,-204.617,0.00019352,2]
[346259305,1734844247141,-500.0,0.00019352,2]
[346259306,1734844247150,-150.0,0.00019352,2]
[346259307,1734844247160,-243.52456452,0.00019352,2]
[346259308,1734844247169,-173.74770991,0.00019352,2]
[346259309,1734844247179,-1987.71263724,0.00019352,2]
[346259310,1734844247189,-1101.80489096,0.00019354,2]
[346259311,1734844247198,-270.4974656,0.00019354,2]
[346259312,1734844247209,-200.53586569,0.00019373,2]
[346259313,1734844247218,-86150.79,0.00019374,2]
[346259314,1734844247228,-4816.0,0.000194,16]
[346259315,1734844247238,-3407.0,0.000194,2]
[346259316,1734844247247,-153.0,0.00019406,2]
[346259317,1734844247256,-153.0,0.00019406,2]
[346259318,1734844247265,-153.0,0.00019406,2]
[346259319,1734844247275,-519.5,0.00019416,2]
[346259320,1734844247284,-500.0,0.00019416,2]
[346259321,1734844247293,-681.09,0.00019416,2]
[346259322,1734844247303,-23102.6079782,0.00019416,2]
[346259323,1734844247312,-1101.80489096,0.00019424,2]
[346259324,1734844247322,-270.4974656,0.00019424,2]
[346259325,1734844247331,-519.5,0.00019429,2]
[346259326,1734844247341,-519.5,0.00019429,2]
[346259327,1734844247350,-519.5,0.00019429,2]
[346259328,1734844247359,-519.5,0.00019429,2]
[346259329,1734844247369,-519.5,0.00019429,2]
[346259330,1734844247378,-519.5,0.00019429,2]
[346259331,1734844247389,-519.5,0.00019429,2]
[346259332,1734844247399,-519.5,0.00019429,2]
[346259333,1734844247408,-519.5,0.00019429,2]
[346259334,1734844247418,-5422.46502094,0.0001944,2]
[346259335,1734844247427,-1701.81444852,0.00019443,2]
[346259336,1734844247436,-418.77528031,0.00019451,2]
[346259337,1734844247445,-519.5,0.00019451,2]
[346259338,1734844247456,-504.307398,0.00019451,2]
[346259339,1734844247466,-681.09,0.00019451,2]
[346259340,1734844247475,-1781.0,0.00019452,2]
[346259341,1734844247485,-1192.77,0.00019452,2]
[346259342,1734844247494,-221.666737,0.00019452,2]
[346259343,1734844247503,-863.660607,0.00019452,2]
[346259344,1734844247512,-505.84150712,0.00019452,2]
[346259345,1734844247521,-500.0,0.00019452,2]
[346259346,1734844247531,-500.0,0.00019452,2]
[346259347,1734844247540,-500.0,0.00019452,2]
[346259348,1734844247549,-503.3592569,0.00019452,2]
[346259349,1734844247558,-500.0,0.00019452,2]
[346259350,1734844247567,-500.0,0.00019452,2]
[346259351,1734844247576,-206.28720129,0.00019452,2]
[346259352,1734844247585,-505.90356747,0.00019452,2]
[346259353,1734844247595,-500.0,0.00019452,2]
[346259354,1734844247604,-500.0,0.00019452,2]
[346259355,1734844247613,-503.6343876,0.00019452,2]
[346259356,1734844247622,-500.0,0.00019452,2]
[346259357,1734844247631,-500.0,0.00019452,2]
[346259358,1734844247641,-500.0,0.00019452,2]
[346259359,1734844247650,-500.0,0.00019452,2]
[346259360,1734844247659,-500.0,0.00019452,2]
[346259361,1734844247668,-500.0,0.00019452,2]
[346259362,1734844247678,-508.98851282,0.00019452,2]
[346259363,1734844247687,-500.0,0.00019452,2]
[346259364,1734844247696,-500.0,0.00019452,2]
[346259365,1734844247707,-500.0,0.00019452,2]
[346259366,1734844247717,-614.83,0.00019452,2]
[346259367,1734844247727,-506.78789077,0.00019452,2]
[346259368,1734844247736,-500.0,0.00019452,2]
[346259369,1734844247749,-500.0,0.00019452,2]
[346259370,1734844247759,-508.52833492,0.00019452,2]
[346259371,1734844247770,-500.0,0.00019452,2]
[346259372,1734844247783,-500.0,0.00019452,2]
[346259373,1734844247793,-500.0,0.00019452,2]
[346259374,1734844247803,-500.0,0.00019452,2]
[346259375,1734844247813,-507.74637409,0.00019452,2]
[346259376,1734844247824,-500.0,0.00019452,2]
[346259377,1734844247837,-500.0,0.00019452,2]
[346259378,1734844247847,-500.0,0.00019452,2]
[346259379,1734844247857,-500.0,0.00019452,2]
[346259380,1734844247866,-500.0,0.00019452,2]
[346259381,1734844247876,-500.0,0.00019452,2]
[346259382,1734844247886,-500.0,0.00019452,2]
[346259383,1734844247895,-452.6653268,0.00019452,2]
[346259384,1734844247904,-500.0,0.00019452,2]
[346259385,1734844247914,-500.0,0.00019452,2]
[346259386,1734844247924,-500.0,0.00019452,2]
[346259387,1734844247936,-500.0,0.00019452,2]
[346259388,1734844247945,-500.0,0.00019452,2]
[346259389,1734844247956,-500.0,0.00019452,2]
[346259390,1734844247965,-500.0,0.00019452,2]
[346259391,1734844247974,-500.0,0.00019452,2]
[346259392,1734844247984,-500.0,0.00019452,2]
[346259393,1734844247994,-541.99,0.00019452,2]
[346259394,1734844248003,-500.0,0.00019452,2]
[346259395,1734844248013,-500.0,0.00019452,2]
[346259396,1734844248022,-500.0,0.00019452,2]
[346259397,1734844248031,-504.83985034,0.00019452,2]
[346259398,1734844248041,-500.0,0.00019452,2]
[346259399,1734844248050,-500.0,0.00019452,2]
[346259400,1734844248060,-500.0,0.00019452,2]
[346259401,1734844248070,-500.0,0.00019452,2]
[346259402,1734844248079,-500.0,0.00019452,2]
[346259403,1734844248089,-500.0,0.00019452,2]
[346259404,1734844248099,-500.0,0.00019452,2]
[346259405,1734844248109,-500.0,0.00019452,2]
[346259406,1734844248119,-500.0,0.00019452,2]
[346259407,1734844248128,-500.0,0.00019452,2]
[346259408,1734844248138,-500.0,0.00019452,2]
[346259409,1734844248149,-358.56927255,0.00019452,2]
[346259410,1734844248159,-500.0,0.00019452,2]
[346259411,1734844248169,-500.0,0.00019452,2]
[346259412,1734844248180,-500.0,0.00019452,2]
[346259413,1734844248191,-577.45057248,0.00019452,2]
[346259414,1734844248204,-500.0,0.00019452,2]
[346259415,1734844248217,-500.0,0.00019452,2]
[346259416,1734844248227,-500.0,0.00019452,2]
[346259417,1734844248238,-500.0,0.00019452,2]
[346259418,1734844248248,-503.17314836,0.00019452,2]
[346259419,1734844248258,-500.0,0.00019452,2]
[346259420,1734844248268,-506.47140704,0.00019452,2]
[346259421,1734844248278,-500.0,0.00019452,2]
[346259422,1734844248294,-500.0,0.00019452,2]
[346259423,1734844248303,-500.0,0.00019452,2]
[346259424,1734844248313,-500.0,0.00019452,2]
[346259425,1734844248322,-500.0,0.00019452,2]
[346259426,1734844248332,-606.51,0.00019452,2]
[346259427,1734844248341,-500.0,0.00019452,2]
[346259428,1734844248351,-500.0,0.00019452,2]
[346259429,1734844248360,-1256.27,0.00019452,2]
[346259430,1734844248370,-500.0,0.00019452,2]
[346259431,1734844248379,-500.0,0.00019452,2]
[346259432,1734844248389,-355.96571917,0.00019452,2]
[346259433,1734844248398,-776.07,0.00019452,2]
[346259434,1734844248408,-500.0,0.00019452,2]
[346259435,1734844248417,-500.0,0.00019452,2]
[346259436,1734844248427,-607.46,0.00019452,2]
[346259437,1734844248436,-500.0,0.00019452,2]
[346259438,1734844248445,-500.0,0.00019452,2]
[346259439,1734844248457,-500.0,0.00019452,2]
[346259440,1734844248466,-507.60591145,0.00019452,2]
[346259441,1734844248475,-500.0,0.00019452,2]
[346259442,1734844248485,-500.0,0.00019452,2]
[346259443,1734844248495,-500.0,0.00019452,2]
[346259444,1734844248504,-500.0,0.00019452,2]
[346259445,1734844248513,-500.0,0.00019452,2]
[346259446,1734844248522,-503.81875052,0.00019452,2]
[346259447,1734844248532,-500.0,0.00019452,2]
[346259448,1734844248541,-500.0,0.00019452,2]
[346259449,1734844248551,-500.0,0.00019452,2]
[346259450,1734844248559,-2553.98,0.00019452,2]
[346259451,1734844248569,-500.0,0.00019452,2]
[346259452,1734844248578,-500.0,0.00019452,2]
[346259453,1734844248587,-500.0,0.00019452,2]
[346259454,1734844248597,-510.13,0.00019452,2]
[346259455,1734844248607,-500.0,0.00019452,2]
[346259456,1734844248616,-500.0,0.00019452,2]
[346259457,1734844248626,-500.0,0.00019452,2]
[346259458,1734844248635,-500.0,0.00019452,2]
[346259459,1734844248644,-500.0,0.00019452,2]
[346259460,1734844248653,-500.0,0.00019452,2]
[346259461,1734844248663,-500.0,0.00019452,2]
[346259462,1734844248672,-500.0,0.00019452,2]
[346259463,1734844248681,-747.04,0.00019452,2]
[346259464,1734844248691,-500.0,0.00019452,2]
[346259465,1734844248700,-500.0,0.00019452,2]
[346259466,1734844248710,-500.0,0.00019452,2]
[346259467,1734844248719,-500.0,0.00019452,2]
[346259468,1734844248728,-500.0,0.00019452,2]
[346259469,1734844248737,-500.0,0.00019452,2]
[346259470,1734844248747,-829.75,0.00019452,2]
[346259471,1734844248756,-1171.85,0.00019452,2]
[346259472,1734844248770,-500.0,0.00019452,2]
[346259473,1734844248779,-1363.17,0.00019452,2]
[346259474,1734844248788,-500.0,0.00019452,2]
[346259475,1734844248797,-500.0,0.00019452,2]
[346259476,1734844248808,-505.99963767,0.00019452,2]
[346259477,1734844248817,-504.14596934,0.00019452,2]
[346259478,1734844248826,-500.0,0.00019452,2]
[346259479,1734844248836,-500.0,0.00019452,2]
[346259480,1734844248846,-500.21,0.00019452,2]
[346259481,1734844248855,-500.0,0.00019452,2]
[346259482,1734844248983,-500.0,0.00019452,2]
[346259483,1734844249007,-501.09585545,0.00019452,2]
[346259484,1734844249017,-500.0,0.00019452,2]
[346259485,1734844249026,-500.0,0.00019452,2]
[346259486,1734844249035,-506.03159444,0.00019452,2]
[346259487,1734844249044,-219.88770402,0.00019452,2]
[346259488,1734844249054,-500.0,0.00019452,2]
[346259489,1734844249063,-500.0,0.00019452,2]
[346259490,1734844249072,-500.0,0.00019452,2]
[346259491,1734844249081,-500.0,0.00019452,2]
[346259492,1734844249091,-673.25,0.00019452,2]
[346259493,1734844249100,-500.0,0.00019452,2]
[346259494,1734844249109,-500.0,0.00019452,2]
[346259495,1734844249119,-501.71329218,0.00019452,2]
[346259496,1734844249128,-500.0,0.00019452,2]
[346259497,1734844249137,-500.0,0.00019452,2]
[346259498,1734844249146,-567.9,0.00019452,2]
[346259499,1734844249156,-500.0,0.00019452,2]
[346259500,1734844249165,-500.0,0.00019452,2]
[346259501,1734844249175,-500.0,0.00019452,2]
[346259502,1734844249185,-504.51521781,0.00019452,2]
[346259503,1734844249195,-500.0,0.00019452,2]
[346259504,1734844249204,-503.1824367,0.00019452,2]
[346259505,1734844249213,-319.9350853,0.00019452,2]
[346259506,1734844249224,-500.0,0.00019452,2]
[346259507,1734844249233,-503.41,0.00019452,2]
[346259508,1734844249242,-501.69412824,0.00019452,2]
[346259509,1734844249252,-500.0,0.00019452,2]
[346259510,1734844249262,-500.0,0.00019452,2]
[346259511,1734844249271,-504.01524522,0.00019452,2]
[346259512,1734844249281,-500.0,0.00019452,2]
[346259513,1734844249290,-500.0,0.00019452,2]
[346259514,1734844249300,-500.0,0.00019452,2]
[346259515,1734844249309,-1280.71,0.00019452,2]
[346259516,1734844249319,-500.0,0.00019452,2]
[346259517,1734844249329,-500.0,0.00019452,2]
[346259518,1734844249338,-500.0,0.00019452,2]
[346259519,1734844249347,-500.0,0.00019452,2]
[346259520,1734844249356,-500.0,0.00019452,2]
[346259521,1734844249366,-500.0,0.00019452,2]
[346259522,1734844249375,-500.0,0.00019452,2]
[346259523,1734844249385,-482.6096577,0.00019452,2]
[346259524,1734844249394,-500.0,0.00019452,2]
[346259525,1734844249404,-500.0,0.00019452,2]
[346259526,1734844249413,-842.9,0.00019452,2]
[346259527,1734844249423,-500.00863561,0.00019452,2]
[346259528,1734844249432,-241.66772367,0.00019452,2]
[346259529,1734844249441,-500.0,0.00019452,2]
[346259530,1734844249451,-500.0,0.00019452,2]
[346259531,1734844249462,-500.0,0.00019452,2]
[346259532,1734844249471,-500.0,0.00019452,2]
[346259533,1734844249480,-507.80187707,0.00019452,2]
[346259534,1734844249489,-500.0,0.00019452,2]
[346259535,1734844249498,-719.69,0.00019452,2]
[346259536,1734844249508,-500.0,0.00019452,2]
[346259537,1734844249516,-500.0,0.00019452,2]
[346259538,1734844249526,-500.0,0.00019452,2]
[346259539,1734844249535,-500.0,0.00019452,2]
[346259540,1734844249544,-500.0,0.00019452,2]
[346259541,1734844249554,-745.04,0.00019452,2]
[346259542,1734844249563,-349.68131574,0.00019452,2]
[346259543,1734844249572,-500.0,0.00019452,2]
[346259544,1734844249581,-440.88583852,0.00019452,2]
[346259545,1734844249590,-500.0,0.00019452,2]
[346259546,1734844249599,-500.0,0.00019452,2]
[346259547,1734844249609,-500.0,0.00019452,2]
[346259548,1734844249618,-500.0,0.00019452,2]
[346259549,1734844249627,-500.0,0.00019452,2]
[346259550,1734844249637,-500.0,0.00019452,2]
[346259551,1734844249646,-500.0,0.00019452,2]
[346259552,1734844249655,-1954.26,0.00019452,2]
[346259553,1734844249664,-500.0,0.00019452,2]
[346259554,1734844249673,-500.0,0.00019452,2]
[346259555,1734844249682,-500.0,0.00019452,2]
[346259556,1734844249691,-500.0,0.00019452,2]
[346259557,1734844249700,-569.74,0.00019452,2]
[346259558,1734844249711,-500.0,0.00019452,2]
[346259559,1734844249719,-523.5743602,0.00019452,2]
[346259560,1734844249729,-500.0,0.00019452,2]
[346259561,1734844249738,-500.0,0.00019452,2]
[346259562,1734844249752,-500.0,0.00019452,2]
[346259563,1734844249761,-500.0,0.00019452,2]
[346259564,1734844249770,-500.0,0.00019452,2]
[346259565,1734844249779,-502.37073072,0.00019452,2]
[346259566,1734844249790,-500.0,0.00019452,2]
[346259567,1734844249802,-500.0,0.00019452,2]
[346259568,1734844249811,-500.0,0.00019452,2]
[346259569,1734844249821,-500.0,0.00019452,2]
[346259570,1734844249831,-500.0,0.00019452,2]
[346259571,1734844249840,-500.0,0.00019452,2]
[346259572,1734844249849,-500.0,0.00019452,2]
[346259573,1734844249859,-500.0,0.00019452,2]
[346259574,1734844249868,-556.78,0.00019452,2]
[346259575,1734844249877,-1151.4,0.00019452,2]
[346259576,1734844249887,-500.0,0.00019452,2]
[346259577,1734844249898,-501.70027808,0.00019452,2]
[346259578,1734844249908,-500.0,0.00019452,2]
[346259579,1734844249919,-500.0,0.00019452,2]
[346259580,1734844249928,-500.0,0.00019452,2]
[346259581,1734844249938,-500.0,0.00019452,2]
[346259582,1734844249947,-500.0,0.00019452,2]
[346259583,1734844249958,-500.0,0.00019452,2]
[346259584,1734844249967,-500.92254118,0.00019452,2]
[346259585,1734844249977,-500.0,0.00019452,2]
[346259586,1734844249986,-500.0,0.00019452,2]
[346259587,1734844249995,-500.0,0.00019452,2]
[346259588,1734844250004,-502.55382402,0.00019452,2]
[346259589,1734844250014,-500.0,0.00019452,2]
[346259590,1734844250023,-500.0,0.00019452,2]
[346259591,1734844250033,-1408.14,0.00019452,2]
[346259592,1734844250042,-500.0,0.00019452,2]
[346259593,1734844250051,-500.0,0.00019452,2]
[346259594,1734844250061,-500.0,0.00019452,2]
[346259595,1734844250070,-446.91363184,0.00019452,2]
[346259596,1734844250079,-500.0,0.00019452,2]
[346259597,1734844250088,-500.0,0.00019452,2]
[346259598,1734844250098,-498.14410753,0.00019452,2]
[346259599,1734844250107,-612.24,0.00019452,2]
[346259600,1734844250117,-500.0,0.00019452,2]
[346259601,1734844250127,-500.0,0.00019452,2]
[346259602,1734844250137,-500.0,0.00019452,2]
[346259603,1734844250146,-500.0,0.00019452,2]
[346259604,1734844250155,-500.0,0.00019452,2]
[346259605,1734844250164,-506.22480422,0.00019452,2]
[346259606,1734844250174,-714.99,0.00019452,2]
[346259607,1734844250183,-500.0,0.00019452,2]
[346259608,1734844250192,-503.63561028,0.00019452,2]
[346259609,1734844250203,-500.0,0.00019452,2]
[346259610,1734844250213,-157.26132845,0.00019452,2]
[346259611,1734844250222,-731.44,0.00019452,2]
[346259612,1734844250232,-500.0,0.00019452,2]
[346259613,1734844250241,-500.0,0.00019452,2]
[346259614,1734844250250,-500.0,0.00019452,2]
[346259615,1734844250259,-500.0,0.00019452,2]
[346259616,1734844250269,-500.0,0.00019452,2]
[346259617,1734844250279,-502.14472558,0.00019452,2]
[346259618,1734844250288,-500.0,0.00019452,2]
[346259619,1734844250298,-195.5870935,0.00019452,2]
[346259620,1734844250307,-500.0,0.00019452,2]
[346259621,1734844250316,-500.0,0.00019452,2]
[346259622,1734844250326,-500.0,0.00019452,2]
[346259623,1734844250336,-544.96136503,0.00019452,2]
[346259624,1734844250346,-580.58,0.00019452,2]
[346259625,1734844250355,-500.0,0.00019452,2]
[346259626,1734844250365,-600.5146323,0.00019452,2]
[346259627,1734844250375,-500.0,0.00019452,2]
[346259628,1734844250386,-500.0,0.00019452,2]
[346259629,1734844250395,-500.0,0.00019452,2]
[346259630,1734844250404,-1690.67,0.00019452,2]
[346259631,1734844250414,-500.0,0.00019452,2]
[346259632,1734844250425,-500.0,0.00019452,2]
[346259633,1734844250435,-500.0,0.00019452,2]
[346259634,1734844250445,-806.35,0.00019452,2]
[346259635,1734844250455,-500.0,0.00019452,2]
[346259636,1734844250464,-500.0,0.00019452,2]
[346259637,1734844250473,-500.0,0.00019452,2]
[346259638,1734844250482,-500.0,0.00019452,2]
[346259639,1734844250491,-500.0,0.00019452,2]
[346259640,1734844250500,-500.0,0.00019452,2]
[346259641,1734844250509,-500.0,0.00019452,2]
[346259642,1734844250521,-1825.93,0.00019452,2]
[346259643,1734844250530,-500.0,0.00019452,2]
[346259644,1734844250540,-500.0,0.00019452,2]
[346259645,1734844250550,-500.0,0.00019452,2]
[346259646,1734844250559,-500.0,0.00019452,2]
[346259647,1734844250567,-500.0,0.00019452,2]
[346259648,1734844250578,-500.0,0.00019452,2]
[346259649,1734844250587,-504.21835359,0.00019452,2]
[346259650,1734844250596,-500.0,0.00019452,2]
[346259651,1734844250605,-556.88,0.00019452,2]
[346259652,1734844250614,-522.99,0.00019452,2]
[346259653,1734844250624,-500.0,0.00019452,2]
[346259654,1734844250633,-933.8,0.00019452,2]
[346259655,1734844250642,-500.0,0.00019452,2]
[346259656,1734844250651,-1294.83,0.00019452,2]
[346259657,1734844250660,-500.0,0.00019452,2]
[346259658,1734844250670,-500.0,0.00019452,2]
[346259659,1734844250679,-500.0,0.00019452,2]
[346259660,1734844250691,-1201.89,0.00019452,2]
[346259661,1734844250700,-500.0,0.00019452,2]
[346259662,1734844250711,-942.83,0.00019452,2]
[346259663,1734844250720,-940.33,0.00019452,2]
[346259664,1734844250730,-500.0,0.00019452,2]
[346259665,1734844250739,-500.0,0.00019452,2]
[346259666,1734844250749,-500.0,0.00019452,2]
[346259667,1734844250762,-1141.46,0.00019452,2]
[346259668,1734844250772,-624.66,0.00019452,2]
[346259669,1734844250783,-696.59,0.00019452,2]
[346259670,1734844250795,-500.0,0.00019452,2]
[346259671,1734844250805,-884.44,0.00019452,2]
[346259672,1734844250815,-500.0,0.00019452,2]
[346259673,1734844250824,-500.0,0.00019452,2]
[346259674,1734844250833,-500.0,0.00019452,2]
[346259675,1734844250843,-500.0,0.00019452,2]
[346259676,1734844250853,-500.0,0.00019452,2]
[346259677,1734844250862,-500.0,0.00019452,2]
[346259678,1734844250872,-500.0,0.00019452,2]
[346259679,1734844250882,-500.0,0.00019452,2]
[346259680,1734844250893,-500.0,0.00019452,2]
[346259681,1734844250902,-500.0,0.00019452,2]
[346259682,1734844250911,-933.01,0.00019452,2]
[346259683,1734844250921,-500.0,0.00019452,2]
[346259684,1734844250931,-500.0,0.00019452,2]
[346259685,1734844250940,-500.0,0.00019452,2]
[346259686,1734844250950,-500.0,0.00019452,2]
[346259687,1734844250961,-539.87,0.00019452,2]
[346259688,1734844250971,-500.0,0.00019452,2]
[346259689,1734844250980,-500.0,0.00019452,2]
[346259690,1734844250992,-500.0,0.00019452,2]
[346259691,1734844251001,-500.0,0.00019452,2]
[346259692,1734844251011,-500.0,0.00019452,2]
[346259693,1734844251020,-1950.3,0.00019452,2]
[346259694,1734844251029,-697.84,0.00019452,2]
[346259695,1734844251038,-500.0,0.00019452,2]
[346259696,1734844251047,-500.0,0.00019452,2]
[346259697,1734844251057,-500.0,0.00019452,2]
[346259698,1734844251066,-6416.08,0.00019452,2]
[346259699,1734844251075,-511.48,0.00019452,2]
[346259700,1734844251084,-500.0,0.00019452,2]
[346259701,1734844251093,-549.26354766,0.00019452,2]
[346259702,1734844251102,-500.0,0.00019452,2]
[346259703,1734844251232,-500.0,0.00019452,2]
[346259704,1734844251242,-2463.0,0.00019452,2]
[346259705,1734844251251,-500.0,0.00019452,2]
[346259706,1734844251260,-500.0,0.00019452,2]
[346259707,1734844251269,-548.25,0.00019452,2]
[346259708,1734844251279,-2343.45,0.00019452,2]
[346259709,1734844251288,-518.05820589,0.00019452,2]
[346259710,1734844251297,-534.90023569,0.00019452,2]
[346259711,1734844251306,-500.0,0.00019452,2]
[346259712,1734844251315,-1477.34,0.00019452,2]
[346259713,1734844251324,-843.1,0.00019452,2]
[346259714,1734844251333,-500.0,0.00019452,2]
[346259715,1734844251343,-773.52,0.00019452,2]
[346259716,1734844251352,-500.0,0.00019452,2]
[346259717,1734844251361,-1216.02,0.00019452,2]
[346259718,1734844251369,-3482.64,0.00019452,2]
[346259719,1734844251379,-505.54015271,0.00019452,2]
[346259720,1734844251389,-1269.95,0.00019452,2]
[346259721,1734844251398,-6516.01,0.00019452,2]
[346259722,1734844251407,-500.0,0.00019452,2]
[346259723,1734844251416,-500.0,0.00019452,2]
[346259724,1734844251425,-500.0,0.00019452,2]
[346259725,1734844251434,-500.0,0.00019452,2]
[346259726,1734844251443,-500.0,0.00019452,2]
[346259727,1734844251452,-18985.3,0.00019452,2]
[346259728,1734844251465,-501.57780755,0.00019452,2]
[346259729,1734844251474,-150.13692425,0.00019452,2]
[346259730,1734844251483,-1002.14,0.00019452,2]
[346259731,1734844251493,-686.53,0.00019452,2]
[346259732,1734844251502,-500.0,0.00019452,2]
[346259733,1734844251511,-500.0,0.00019452,2]
[346259734,1734844251520,-1887.03,0.00019452,2]
[346259735,1734844251529,-500.0,0.00019452,2]
[346259736,1734844251538,-500.0,0.00019452,2]
[346259737,1734844251547,-1273.16,0.00019452,2]
[346259738,1734844251557,-500.0,0.00019452,2]
[346259739,1734844251566,-500.0,0.00019452,2]
[346259740,1734844251575,-500.0,0.00019452,2]
[346259741,1734844251583,-867.27,0.00019452,2]
[346259742,1734844251592,-1269.55,0.00019452,2]
[346259743,1734844251602,-500.0,0.00019452,2]
[346259744,1734844251611,-820.19,0.00019452,2]
[346259745,1734844251620,-500.0,0.00019452,2]
[346259746,1734844251629,-929.28,0.00019452,2]
[346259747,1734844251638,-747.7,0.00019452,2]
[346259748,1734844251647,-8672.48,0.00019452,2]
[346259749,1734844251656,-500.0,0.00019452,2]
[346259750,1734844251666,-500.0,0.00019452,2]
[346259751,1734844251674,-742.75,0.00019452,2]
[346259752,1734844251683,-500.0,0.00019452,2]
[346259753,1734844251693,-903.0,0.00019452,2]
[346259754,1734844251702,-4651.42,0.00019452,2]
[346259755,1734844251713,-500.0,0.00019452,2]
[346259756,1734844251722,-500.0,0.00019452,2]
[346259757,1734844251731,-500.0,0.00019452,2]
[346259758,1734844251742,-757.63,0.00019452,2]
[346259759,1734844251753,-500.0,0.00019452,2]
[346259760,1734844251762,-500.0,0.00019452,2]
[346259761,1734844251771,-597.57,0.00019452,2]
[346259762,1734844251780,-500.0,0.00019452,2]
[346259763,1734844251790,-500.0,0.00019452,2]
[346259764,1734844251799,-645.11595768,0.00019452,2]
[346259765,1734844251808,-3263.69,0.00019452,2]
[346259766,1734844251817,-566.38138871,0.00019452,2]
[346259767,1734844251827,-508.78806869,0.00019452,2]
[346259768,1734844251836,-2337.99,0.00019452,2]
[346259769,1734844251845,-3078.04,0.00019452,2]
[346259770,1734844251854,-808.04,0.00019452,2]
[346259771,1734844251863,-500.0,0.00019452,2]
[346259772,1734844251871,-638.82,0.00019452,2]
[346259773,1734844251880,-1454.28,0.00019452,2]
[346259774,1734844251889,-500.0,0.00019452,2]
[346259775,1734844251899,-500.0,0.00019452,2]
[346259776,1734844251907,-500.0,0.00019452,2]
[346259777,1734844251916,-282.00442491,0.00019452,2]
[346259778,1734844251925,-1187.93,0.00019452,2]
[346259779,1734844251934,-2210.25,0.00019452,2]
[346259780,1734844251943,-1979.99,0.00019452,2]
[346259781,1734844251952,-502.94950199,0.00019452,2]
[346259782,1734844251963,-500.0,0.00019452,2]
[346259783,1734844251971,-1471.1,0.00019452,2]
[346259784,1734844251980,-5122.1,0.00019452,2]
[346259785,1734844251989,-907.89,0.00019452,2]
[346259786,1734844251999,-1118.29,0.00019452,2]
[346259787,1734844252007,-1036.76,0.00019452,2]
[346259788,1734844252017,-5386.49,0.00019452,2]
[346259789,1734844252026,-500.0,0.00019452,2]
[346259790,1734844252035,-13728.43,0.00019452,2]
[346259791,1734844252044,-846.11,0.00019452,2]
[346259792,1734844252053,-710.65,0.00019452,2]
[346259793,1734844252063,-810.48,0.00019452,2]